bitfinex/quotes_BTCUSD_20250205
["timestamp","ask_amount","ask_price","bid_price","bid_amount"]
[1738791388677,0.26157052,97382.0,97381.0,0.00022428]
[1738791388862,0.10753852,97382.0,97381.0,0.00022428]
[1738791389340,0.32316052,97382.0,97381.0,0.00022428]
[1738791391455,0.40026052,97382.0,97381.0,0.00022428]
[1738791392435,0.24622852,97382.0,97381.0,0.00022428]
[1738791392657,0.16912852,97382.0,97381.0,0.00022428]
[1738791394221,0.10753852,97382.0,97381.0,0.00022428]
[1738791394709,0.32316052,97382.0,97381.0,0.00022428]
[1738791397172,0.16912852,97382.0,97381.0,0.00022428]
[1738791397621,0.32316052,97382.0,97381.0,0.00022428]
[1738791398031,0.26157052,97382.0,97381.0,0.00022428]
[1738791400925,0.36407417,97382.0,97381.0,0.00022428]
[1738791401127,0.66453202,97382.0,97381.0,0.00022428]
[1738791401399,0.57676417,97382.0,97381.0,0.00022428]
[1738791406487,0.595018,97382.0,97381.0,0.00022428]
[1738791407358,0.745018,97382.0,97381.0,0.00022428]
[1738791413358,0.72676417,97382.0,97381.0,0.00022428]
[1738791413778,0.81577775,97382.0,97381.0,0.00022428]
[1738791415433,0.8340221,97382.0,97381.0,0.00022428]
[1738791418321,0.81577775,97382.0,97381.0,0.00022428]
[1738791420733,0.72676417,97382.0,97381.0,0.00022428]
[1738791420964,0.68076417,97382.0,97381.0,0.00022428]
[1738791424430,0.69076417,97382.0,97381.0,0.00022428]
[1738791424625,0.73986417,97382.0,97381.0,0.00022428]
[1738791424831,0.01,97375.0,97342.0,0.0496]
[1738791425039,0.56684665,97369.0,97342.0,0.0496]
[1738791425871,0.62224665,97369.0,97342.0,0.0496]
[1738791426575,0.64050047,97369.0,97342.0,0.0496]
[1738791426779,0.64050047,97369.0,97341.0,0.08199704]
[1738791427822,0.62224665,97369.0,97341.0,0.08199704]
[1738791429918,1.16354665,97369.0,97341.0,0.08199704]
[1738791430123,1.17499792,97369.0,97341.0,0.08199704]
[1738791430316,1.27750157,97369.0,97341.0,0.08199704]
[1738791430704,1.17499792,97369.0,97341.0,0.08199704]
[1738791432099,1.11959792,97369.0,97341.0,0.08199704]
[1738791432305,0.32959792,97369.0,97354.0,0.1296]
[1738791432510,0.32959792,97369.0,97361.0,0.154065]
[1738791432511,0.154053,97369.0,97361.0,0.154065]
[1738791432682,0.154053,97369.0,97368.0,0.08046468]
[1738791433012,0.154053,97369.0,97368.0,0.00036468]
[1738791433013,0.25655665,97369.0,97368.0,0.00036468]
[1738791433331,0.154045,97375.0,97368.0,0.00036468]
[1738791433579,0.10250365,97374.0,97369.0,0.0495]
[1738791433773,0.10250365,97374.0,97368.0,0.00036468]
[1738791433774,0.10753852,97382.0,97371.0,0.0495]
[1738791434689,0.10753852,97382.0,97372.0,0.205397]
[1738791434852,0.10753852,97382.0,97374.0,0.154044]
[1738791435260,0.10753852,97382.0,97375.0,0.154043]
[1738791435457,0.10753852,97382.0,97372.0,0.205397]
[1738791435458,0.10753852,97382.0,97377.0,0.15404]
[1738791435658,0.10753852,97382.0,97378.0,0.0806]
[1738791437004,0.10753852,97382.0,97379.0,0.154037]
[1738791437329,0.10753852,97382.0,97378.0,0.0806]
[1738791441874,0.3251,97381.0,97378.0,0.0806]
[1738791442452,0.3251,97381.0,97379.0,0.154035]
[1738791442838,0.3251,97381.0,97378.0,0.0806]
[1738791445110,0.3251,97381.0,97378.0,0.234638]
[1738791445670,0.3251,97381.0,97380.0,0.154035]
[1738791445806,0.10753852,97382.0,97380.0,0.154035]
[1738791445807,0.43263852,97382.0,97381.0,0.164034]
[1738791446013,0.43263852,97382.0,97381.0,0.39493765]
[1738791446225,0.43263852,97382.0,97381.0,0.292434]
[1738791446850,0.41363852,97382.0,97381.0,0.292434]
[1738791451017,0.41301621,97382.0,97381.0,0.292434]
[1738791453676,0.41301621,97382.0,97381.0,0.1384]
[1738791460815,0.41301621,97382.0,97381.0,0.0572]
[1738791465853,0.41301621,97382.0,97381.0,0.05742428]
[1738791472416,0.41301621,97382.0,97381.0,0.16425828]
[1738791473547,0.41301621,97382.0,97381.0,0.19626048]
[1738791473799,0.41301621,97382.0,97381.0,0.32526048]
[1738791474240,0.41301621,97382.0,97381.0,0.42776413]
[1738791474440,0.41301621,97382.0,97381.0,0.57776413]
[1738791476887,0.39401621,97382.0,97381.0,0.57776413]
[1738791478435,0.39401621,97382.0,97381.0,0.47526048]
[1738791480092,0.39401621,97382.0,97381.0,0.57776413]
[1738791481807,0.37501621,97382.0,97381.0,0.5987769]
[1738791482643,0.37501621,97382.0,97381.0,0.61797218]
[1738791485338,0.37501621,97382.0,97381.0,0.51546853]
[1738791486723,0.35601621,97382.0,97381.0,0.49627325]
[1738791487321,0.35601621,97382.0,97381.0,0.34627325]
[1738791489385,0.35601621,97382.0,97381.0,0.36547565]
[1738791491870,0.33701621,97382.0,97381.0,0.36547565]
[1738791492291,0.33701621,97382.0,97381.0,0.6179793]
[1738791492492,0.01191621,97382.0,97381.0,0.6179793]
[1738791492863,0.3251,97403.0,97402.0,0.164]
[1738791493065,0.3251,97403.0,97402.0,0.28909662]
[1738791493265,0.3251,97403.0,97402.0,0.32109882]
[1738791494008,0.32514672,97403.0,97402.0,0.44280487]
[1738791496909,0.30614672,97403.0,97402.0,0.44280487]
[1738791497093,0.30614672,97403.0,97402.0,0.42360247]
[1738791497293,0.30614672,97403.0,97402.0,0.4350548]
[1738791497501,0.30614672,97403.0,97402.0,0.4030526]
[1738791499314,0.30614672,97403.0,97402.0,0.58532473]
[1738791500275,0.30614672,97403.0,97402.0,0.60448237]
[1738791501068,0.30614672,97403.0,97402.0,0.60470665]
[1738791501282,0.30625352,97403.0,97402.0,0.60436407]
[1738791501826,0.28725352,97403.0,97402.0,0.60436407]
[1738791502264,0.00015352,97403.0,97402.0,0.73596407]
[1738791502468,0.00015352,97403.0,97402.0,1.76158298]
[1738791505948,0.2871,97429.0,97428.0,0.153959]
[1738791506097,0.2871,97429.0,97428.0,0.27905562]
[1738791506300,0.28720072,97429.0,97428.0,0.27905562]
[1738791507258,0.28720072,97429.0,97428.0,0.29821326]
[1738791508862,0.28720072,97429.0,97428.0,0.14425426]
[1738791508984,0.28720072,97429.0,97428.0,0.29821326]
[1738791512499,0.28720072,97429.0,97428.0,0.14425426]
[1738791512728,0.28720072,97429.0,97428.0,0.29821326]
[1738791514156,0.28730752,97429.0,97428.0,0.29821326]
[1738791514928,0.28730752,97429.0,97428.0,0.14425426]
[1738791518445,0.28730752,97429.0,97428.0,0.01915764]
[1738791519995,0.28730752,97429.0,97427.0,0.01]
[1738791521919,0.2871,97428.0,97427.0,0.01]
[1738791522632,0.2871,97428.0,97427.0,0.02917819]
[1738791523575,0.2871,97428.0,97427.0,0.18313919]
[1738791523885,0.2871,97428.0,97427.0,0.23346554]
[1738791524137,0.2871,97428.0,97427.0,0.23243919]
[1738791524318,0.2871,97428.0,97427.0,0.18313919]
[1738791525385,0.2871,97428.0,97427.0,0.1943528]
[1738791526631,0.2871,97428.0,97427.0,0.55419195]
[1738791528125,0.2871,97428.0,97427.0,1.62881086]
[1738791528331,0.27420794,97428.0,97427.0,1.62881086]
[1738791528545,0.27420794,97428.0,97427.0,1.64239654]
[1738791528756,0.27420794,97428.0,97427.0,1.62881086]
[1738791528959,0.27420794,97428.0,97427.0,1.64239654]
[1738791529592,0.27420794,97428.0,97427.0,1.68075916]
[1738791529593,0.27037437,97428.0,97427.0,1.68075916]
[1738791530370,0.27037437,97428.0,97427.0,1.69609817]
[1738791530634,0.27037437,97428.0,97427.0,1.68251249]
[1738791531150,0.00020752,97429.0,97428.0,0.16]
[1738791531390,0.00020752,97429.0,97428.0,0.4205619]
[1738791531623,0.00020752,97429.0,97428.0,0.41953577]
[1738791531870,0.25679559,97446.0,97445.0,0.163932]
[1738791532122,0.25726261,97446.0,97445.0,0.39153227]
[1738791533568,0.25726261,97446.0,97445.0,0.28902862]
[1738791533808,0.25726261,97446.0,97445.0,0.30818315]
[1738791535940,0.25726261,97446.0,97445.0,0.15425115]
[1738791536158,0.25726261,97446.0,97445.0,0.30818315]
[1738791537121,0.25726261,97446.0,97445.0,0.45818315]
[1738791537305,0.25726261,97446.0,97445.0,0.5606868]
[1738791537479,0.25726261,97446.0,97445.0,0.6081868]
[1738791538749,0.25736951,97446.0,97445.0,0.6081868]
[1738791540294,0.25736951,97446.0,97445.0,0.45818315]
[1738791540678,0.25736951,97446.0,97445.0,0.5606868]
[1738791540887,0.25736951,97446.0,97445.0,0.4067548]
[1738791541086,0.25736951,97446.0,97445.0,0.29425115]
[1738791541289,0.25736951,97446.0,97445.0,0.45818315]
[1738791541931,0.23836951,97446.0,97445.0,0.28902862]
[1738791542540,0.23836951,97446.0,97445.0,0.12509662]
[1738791543151,0.23836951,97446.0,97445.0,0.13509662]
[1738791546735,0.21936951,97446.0,97445.0,0.13509662]
[1738791547931,0.21936951,97446.0,97445.0,0.28902862]
[1738791548333,0.21936951,97446.0,97445.0,0.13509662]
[1738791548539,0.21936951,97446.0,97445.0,0.28902862]
[1738791550140,0.21936951,97446.0,97445.0,0.2892529]
[1738791550570,0.21936951,97446.0,97445.0,0.1353209]
[1738791550983,0.21936951,97446.0,97445.0,0.2277089]
[1738791553546,0.21936951,97446.0,97445.0,0.2177089]
[1738791554227,0.21936951,97446.0,97445.0,0.09261228]
[1738791560704,0.21936951,97446.0,97445.0,0.39103481]
[1738791561879,0.20036951,97446.0,97445.0,0.39103481]
[1738791562603,0.20036951,97446.0,97445.0,0.40176621]
[1738791563862,0.20036951,97446.0,97445.0,0.29926256]
[1738791564062,0.20036951,97446.0,97445.0,0.28853116]
[1738791569198,0.20036951,97446.0,97445.0,0.39103481]
[1738791571831,0.18136951,97446.0,97445.0,0.39103481]
[1738791572620,0.00057392,97446.0,97445.0,0.39103481]
[1738791576904,0.00057392,97446.0,97445.0,0.41178042]
[1738791577249,0.00057392,97446.0,97445.0,0.39103481]
[1738791577472,0.17712541,97468.0,97458.0,0.09282569]
[1738791577705,0.17726546,97468.0,97458.0,0.21792231]
[1738791579514,0.153904,97464.0,97458.0,0.12509662]
[1738791579716,0.1539,97466.0,97458.0,0.12509662]
[1738791579920,0.153902,97465.0,97458.0,0.12509662]
[1738791580059,0.1539,97466.0,97458.0,0.12509662]
[1738791580235,0.153898,97467.0,97458.0,0.12509662]
[1738791580674,0.1539,97466.0,97458.0,0.12509662]
[1738791581501,0.17712541,97465.0,97458.0,0.12509662]
[1738791583503,0.17712541,97465.0,97464.0,0.153902]
[1738791583673,0.17712541,97465.0,97464.0,0.163902]
[1738791584037,0.17712541,97465.0,97464.0,0.01]
[1738791585709,0.17723221,97465.0,97464.0,0.01]
[1738791588268,0.17723221,97465.0,97464.0,0.12]
[1738791588569,0.17723221,97465.0,97464.0,0.273902]
[1738791596844,0.0001068,97465.0,97464.0,0.37640565]
[1738791596974,0.0001068,97465.0,97464.0,0.40833314]
[1738791597188,0.0001068,97465.0,97464.0,0.37640565]
[1738791597595,0.0001068,97465.0,97464.0,0.37662993]
[1738791598805,0.0001068,97465.0,97464.0,0.40853729]
[1738791599134,0.0001068,97465.0,97464.0,0.40853736]
[1738791599316,0.0001068,97465.0,97464.0,0.37662993]
[1738791600029,0.0001068,97465.0,97464.0,0.27412628]
[1738791600266,0.0001068,97465.0,97464.0,0.15213126]
[1738791600636,0.0001068,97465.0,97464.0,0.12022428]
[1738791600833,0.0001068,97465.0,97464.0,0.27412628]
[1738791603179,0.0001068,97465.0,97464.0,0.30603181]
[1738791605120,0.0001068,97465.0,97464.0,0.40853546]
[1738791606468,0.0001068,97465.0,97464.0,0.25463346]
[1738791606676,0.0001068,97465.0,97464.0,0.11022428]
[1738791606907,0.0001068,97465.0,97464.0,0.12022428]
[1738791608122,0.15823221,97465.0,97464.0,0.12022428]
[1738791608955,0.15823221,97465.0,97464.0,0.11022428]
[1738791609931,0.31213321,97465.0,97464.0,0.11022428]
[1738791610135,0.15823221,97465.0,97464.0,0.11022428]
[1738791612530,0.205183,97474.0,97470.0,0.77979194]
[1738791612749,0.153891,97471.0,97470.0,0.77979194]
[1738791614929,0.30419465,97471.0,97470.0,0.77979194]
[1738791615133,0.32719465,97471.0,97470.0,0.77979194]
[1738791615581,0.40509465,97471.0,97470.0,0.77979194]
[1738791617191,0.55509465,97471.0,97470.0,0.77979194]
[1738791618048,0.61668465,97471.0,97470.0,0.77979194]
[1738791618649,0.94178465,97471.0,97470.0,0.77979194]
[1738791618861,0.94713582,97471.0,97470.0,0.77979194]
[1738791619077,1.04963947,97471.0,97470.0,0.77979194]
[1738791619286,0.94713582,97471.0,97470.0,0.77979194]
[1738791619922,0.95713582,97471.0,97470.0,0.77979194]
[1738791620596,0.96713582,97471.0,97470.0,0.77979194]
[1738791621790,0.96713582,97471.0,97470.0,0.78001622]
[1738791622040,0.96724262,97471.0,97470.0,0.78001622]
[1738791623654,0.92424262,97471.0,97470.0,0.78001622]
[1738791623860,0.76889145,97471.0,97470.0,0.78001622]
[1738791624294,0.91889145,97471.0,97470.0,0.78001622]
[1738791624498,0.94189145,97471.0,97470.0,0.78001622]
[1738791624699,0.91889145,97471.0,97470.0,0.78001622]
[1738791625695,0.94189145,97471.0,97470.0,0.78001622]
[1738791626887,0.94724247,97471.0,97470.0,0.78001622]
[1738791628508,0.96724247,97471.0,97470.0,0.78001622]
[1738791628691,1.0285327,97471.0,97470.0,0.78001622]
[1738791631116,1.0285327,97471.0,97470.0,0.61196837]
[1738791631362,2.4490327,97471.0,97470.0,0.12261971]
[1738791631546,0.538291,97465.0,97464.0,0.09181576]
[1738791631774,0.64079465,97465.0,97464.0,0.09181576]
[1738791632134,0.64079465,97465.0,97464.0,0.05515576]
[1738791633640,2.14079465,97465.0,97464.0,0.05515576]
[1738791634252,0.443731,97446.0,97445.0,0.09261228]
[1738791634491,0.89433465,97446.0,97445.0,0.09261228]
[1738791636155,0.80153465,97446.0,97445.0,0.09261228]
[1738791636357,0.75453465,97446.0,97445.0,0.09261228]
[1738791637117,0.76558143,97446.0,97445.0,0.09261228]
[1738791639186,0.81093899,97446.0,97445.0,0.09261228]
[1738791640557,0.76558143,97446.0,97445.0,0.09261228]
[1738791642999,0.82717143,97446.0,97445.0,0.09261228]
[1738791644234,0.83717143,97446.0,97445.0,0.09261228]
[1738791644977,0.91247143,97446.0,97445.0,0.09261228]
[1738791645175,0.96057143,97446.0,97445.0,0.09261228]
[1738791645391,1.06307508,97446.0,97445.0,0.09261228]
[1738791647300,1.06842766,97446.0,97445.0,0.09261228]
[1738791648928,1.05842766,97446.0,97445.0,0.09261228]
[1738791649133,0.96592401,97446.0,97445.0,0.09261228]
[1738791654294,0.96592401,97446.0,97445.0,0.06677364]
[1738791654513,0.97592401,97446.0,97445.0,6.4e-07]
[1738791655135,2.47592401,97446.0,97445.0,6.4e-07]
[1738791655348,2.57842766,97446.0,97445.0,6.4e-07]
[1738791656363,2.57842766,97446.0,97445.0,9.2e-07]
[1738791658512,0.90062401,97446.0,97445.0,9.2e-07]
[1738791660625,0.85252401,97446.0,97445.0,9.2e-07]
[1738791662460,2.35252401,97446.0,97445.0,9.2e-07]
[1738791662859,0.85064401,97446.0,97445.0,9.2e-07]
[1738791665218,0.84064401,97446.0,97445.0,9.2e-07]
[1738791666772,0.85064401,97446.0,97445.0,9.2e-07]
[1738791668276,0.85075081,97446.0,97445.0,9.2e-07]
[1738791668917,0.84075081,97446.0,97445.0,9.2e-07]
[1738791669423,2.34075081,97446.0,97445.0,9.2e-07]
[1738791669644,2.35075081,97446.0,97445.0,9.2e-07]
[1738791669841,2.34263081,97446.0,97445.0,9.2e-07]
[1738791670065,0.85075081,97446.0,97445.0,9.2e-07]
[1738791671216,0.86075081,97446.0,97445.0,9.2e-07]
[1738791671416,2.35075081,97446.0,97445.0,9.2e-07]
[1738791672289,2.36075081,97446.0,97445.0,9.2e-07]
[1738791672451,2.46325446,97446.0,97445.0,9.2e-07]
[1738791674132,2.46325446,97446.0,97414.0,0.0794]
[1738791674133,0.30398,97415.0,97414.0,0.0794]
[1738791674336,0.81617365,97415.0,97414.0,0.0794]
[1738791674538,0.81617365,97415.0,97413.0,7.198e-05]
[1738791674539,0.388571,97414.0,97413.0,7.198e-05]
[1738791674715,0.49107465,97414.0,97413.0,7.198e-05]
[1738791675486,0.49107465,97414.0,97413.0,0.000539]
[1738791676561,0.50191825,97414.0,97413.0,0.000539]
[1738791677111,0.52046484,97414.0,97413.0,0.000539]
[1738791678081,0.45887484,97414.0,97413.0,0.000539]
[1738791678414,0.474227,97414.0,97413.0,0.000539]
[1738791679680,0.799327,97414.0,97413.0,0.00076328]
[1738791679982,0.90183065,97414.0,97413.0,0.00076328]
[1738791681643,0.89183065,97414.0,97413.0,0.00076328]
[1738791681850,0.96342065,97414.0,97413.0,0.00076328]
[1738791683354,0.860917,97414.0,97413.0,0.00076328]
[1738791684072,0.84237041,97414.0,97413.0,0.00076328]
[1738791687602,0.83237041,97414.0,97413.0,0.00076328]
[1738791687823,0.84237041,97414.0,97413.0,0.00076328]
[1738791689546,0.85237041,97414.0,97413.0,0.00076328]
[1738791689778,0.95487406,97414.0,97413.0,2.8e-07]
[1738791691125,0.033,97405.0,97404.0,0.00018456]
[1738791691422,0.50920965,97405.0,97404.0,0.00032461]
[1738791692133,0.52771401,97405.0,97404.0,0.00032461]
[1738791693421,0.50920965,97405.0,97404.0,0.00032461]
[1738791694259,0.9368133,97405.0,97404.0,0.00032461]
[1738791694468,0.83430965,97405.0,97404.0,0.00032461]
[1738791697292,0.82430965,97405.0,97404.0,0.00032461]
[1738791697500,0.83430965,97405.0,97404.0,0.00032461]
[1738791697912,0.82430965,97405.0,97404.0,0.00032461]
[1738791698139,0.82430965,97405.0,97404.0,0.08022461]
[1738791700954,0.81618965,97405.0,97404.0,0.08022461]
[1738791702585,0.66618965,97405.0,97404.0,0.08022461]
[1738791702831,0.60459965,97405.0,97404.0,0.12912461]
[1738791705769,0.45060365,97405.0,97404.0,0.12912461]
[1738791705977,0.3251,97405.0,97404.0,0.12912461]
[1738791707263,0.479096,97405.0,97404.0,0.12912461]
[1738791709077,0.3251,97405.0,97404.0,0.12912461]
[1738791709804,0.479096,97405.0,97404.0,0.12912461]
[1738791713383,0.3251,97405.0,97404.0,0.12912461]
[1738791715073,0.3251,97412.0,97406.0,0.0769]
[1738791722476,0.153986,97411.0,97406.0,0.0769]
[1738791722627,0.153989,97410.0,97406.0,0.0769]
[1738791722852,0.153993,97407.0,97406.0,0.0769]
[1738791723683,0.153993,97407.0,97404.0,0.00032461]
[1738791723684,0.10250365,97407.0,97404.0,0.00032461]
[1738791723856,0.153996,97405.0,97404.0,0.00032461]
[1738791724679,0.25649965,97405.0,97404.0,0.00032461]
[1738791725757,0.26745704,97405.0,97404.0,0.00032461]
[1738791725968,0.50204704,97405.0,97404.0,0.00032461]
[1738791727237,0.82714704,97405.0,97404.0,0.00032461]
[1738791729279,0.92965069,97405.0,97404.0,0.00032461]
[1738791729423,0.87704704,97405.0,97404.0,0.00032461]
[1738791731388,0.82714704,97405.0,97404.0,0.00032461]
[1738791733511,0.83714704,97405.0,97404.0,0.00032461]
[1738791733668,0.84249581,97405.0,97404.0,0.00032461]
[1738791733875,0.99219946,97405.0,97404.0,0.00032461]
[1738791735736,1.06909946,97405.0,97404.0,0.00032461]
[1738791738411,1.07909946,97405.0,97404.0,0.00032461]
[1738791739478,2.57909946,97405.0,97404.0,0.00032461]
[1738791741902,1.07909946,97405.0,97404.0,0.00032461]
[1738791742568,1.07909946,97405.0,97404.0,6.1e-07]
[1738791742700,0.304032,97382.0,97375.0,0.00022428]
[1738791743041,0.75463565,97382.0,97381.0,0.000325]
[1738791743417,0.77309489,97382.0,97381.0,0.000325]
[1738791748003,0.84528127,97382.0,97381.0,0.000325]
[1738791754982,0.82682203,97382.0,97381.0,0.000325]
[1738791756864,0.92932568,97382.0,97381.0,0.000325]
[1738791757071,0.82682203,97382.0,97381.0,0.000325]
[1738791760451,0.76523203,97382.0,97381.0,0.000325]
[1738791767492,0.63972838,97382.0,97381.0,0.000325]
[1738791767696,0.74223203,97382.0,97381.0,0.000325]
[1738791768045,0.76523203,97382.0,97381.0,0.000325]
[1738791771506,0.01,97395.0,97381.0,0.000325]
[1738791771507,0.154014,97394.0,97382.0,0.0773]
[1738791771807,0.205336,97401.0,97385.0,0.1229]
[1738791771996,0.154014,97394.0,97386.0,0.0773]
[1738791772174,0.023,97393.0,97386.0,0.0773]
[1738791772395,0.02288904,97393.0,97386.0,0.0773]
[1738791772713,0.154019,97390.0,97386.0,0.0773]
[1738791772899,0.02288904,97393.0,97386.0,0.0773]
[1738791773056,0.205355,97392.0,97386.0,0.0773]
[1738791773656,0.154023,97388.0,97386.0,0.0773]
[1738791774078,0.205357,97391.0,97386.0,0.0773]
[1738791774270,0.15402,97390.0,97386.0,0.0773]
[1738791774878,0.154024,97387.0,97386.0,0.0773]
[1738791777412,0.3251,97387.0,97386.0,0.0773]
[1738791782907,0.479124,97387.0,97386.0,0.0773]
[1738791783131,0.3251,97387.0,97386.0,0.0773]
[1738791783446,0.479123,97388.0,97386.0,0.0773]
[1738791783987,0.479123,97388.0,97381.0,0.000325]
[1738791783988,0.530465,97388.0,97381.0,0.000325]
[1738791784321,0.154032,97382.0,97381.0,0.000325]
[1738791784526,0.479132,97382.0,97381.0,0.000325]
[1738791786315,0.3251,97382.0,97381.0,0.000325]
[1738791786635,0.479132,97382.0,97381.0,0.000325]
[1738791787758,0.3251,97382.0,97381.0,0.000325]
[1738791788175,0.479132,97382.0,97381.0,0.000325]
[1738791789230,0.3251,97382.0,97381.0,0.000325]
[1738791789657,0.3251,97382.0,97381.0,0.279959]
[1738791790307,0.3251,97382.0,97381.0,0.40505562]
[1738791790723,0.3251,97382.0,97381.0,0.25102162]
[1738791792006,0.3061,97382.0,97381.0,0.25102162]
[1738791792221,0.3061,97382.0,97381.0,0.40505562]
[1738791793215,0.3061,97382.0,97381.0,0.25102162]
[1738791793415,0.3061,97382.0,97381.0,0.41561041]
[1738791793626,0.3061,97382.0,97381.0,0.26157641]
[1738791793820,0.3061,97382.0,97381.0,0.41561041]
[1738791794086,0.3061,97382.0,97381.0,0.26157641]
[1738791795420,0.3061,97392.0,97381.0,0.26157641]
[1738791795651,0.460117,97392.0,97381.0,0.26157641]
[1738791795888,0.3061,97392.0,97381.0,0.26157641]
[1738791796121,0.154019,97391.0,97381.0,0.26157641]
[1738791796290,0.15402,97390.0,97381.0,0.26157641]
[1738791796527,0.154019,97391.0,97381.0,0.26157641]
[1738791796740,0.154026,97386.0,97381.0,0.125925]
[1738791796938,0.154027,97386.0,97381.0,0.125925]
[1738791797163,0.154029,97385.0,97381.0,0.125925]
[1738791797590,0.154025,97387.0,97381.0,0.125925]
[1738791797779,0.154027,97386.0,97381.0,0.125925]
[1738791798515,0.205364,97388.0,97381.0,0.125925]
[1738791798728,0.154029,97385.0,97381.0,0.125925]
[1738791799561,0.205366,97387.0,97381.0,0.125925]
[1738791799562,0.154029,97384.0,97381.0,0.125925]
[1738791799801,0.154028,97385.0,97381.0,0.125925]
[1738791799994,0.154029,97384.0,97381.0,0.125925]
[1738791800262,0.205359,97390.0,97381.0,0.125925]
[1738791800721,0.15403,97384.0,97381.0,0.125925]
[1738791800955,0.154032,97382.0,97381.0,0.000325]
[1738791801238,0.42953565,97382.0,97381.0,0.000325]
[1738791802587,0.44808946,97382.0,97381.0,0.000325]
[1738791804150,0.76477633,97382.0,97381.0,0.000325]
[1738791806134,0.74622252,97382.0,97381.0,0.000325]
[1738791808727,0.76475022,97382.0,97381.0,0.000325]
[1738791809306,0.76497472,97382.0,97381.0,0.000325]
[1738791812003,0.94687837,97382.0,97381.0,0.000325]
[1738791812985,1.00846837,97382.0,97381.0,0.000325]
[1738791813390,0.90596472,97382.0,97381.0,0.000325]
[1738791815140,0.95156472,97382.0,97381.0,0.000325]
[1738791815344,0.96156472,97382.0,97381.0,0.000325]
[1738791819039,0.97183472,97382.0,97381.0,0.000325]
[1738791821641,0.87216472,97382.0,97381.0,0.000325]
[1738791821955,0.98466837,97382.0,97381.0,0.000325]
[1738791824381,0.89024472,97382.0,97381.0,0.000325]
[1738791825887,0.96644472,97382.0,97381.0,0.000325]
[1738791834326,0.84464472,97382.0,97381.0,0.000325]
[1738791834507,0.82656472,97382.0,97381.0,0.000325]
[1738791834714,0.83464472,97382.0,97381.0,0.000325]
[1738791835337,0.65356472,97382.0,97381.0,0.000325]
[1738791838030,0.76497472,97382.0,97381.0,0.000325]
[1738791839285,0.74644702,97382.0,97381.0,0.000325]
[1738791842067,0.7649964,97382.0,97381.0,0.000325]
[1738791844621,0.74644702,97382.0,97381.0,0.000325]
[1738791848100,0.80808702,97382.0,97381.0,0.000325]
[1738791848346,0.82662825,97382.0,97381.0,0.000325]
[1738791851149,0.80808702,97382.0,97381.0,0.000325]
[1738791854099,0.82663058,97382.0,97381.0,0.000325]
[1738791856410,0.83663058,97382.0,97381.0,0.000325]
[1738791856599,0.91683058,97382.0,97381.0,0.000325]
[1738791858038,0.96503058,97382.0,97381.0,0.000325]
[1738791858236,1.06753423,97382.0,97381.0,0.000325]
[1738791858686,0.96503058,97382.0,97381.0,0.000325]
[1738791859123,2.46503058,97382.0,97381.0,0.000325]
[1738791861740,2.49469601,97382.0,97381.0,0.000325]
[1738791862488,0.375682,97376.0,97375.0,0.00022428]
[1738791862685,0.50118565,97376.0,97375.0,0.000271]
[1738791862910,0.9097893,97376.0,97375.0,0.000271]
[1738791863116,0.9097893,97376.0,97330.0,0.09301927]
[1738791863117,0.01,97365.0,97343.0,0.0469]
[1738791863319,0.388726,97348.0,97347.0,0.00036468]
[1738791863565,0.49122965,97348.0,97347.0,0.00036468]
[1738791864422,0.53943864,97348.0,97347.0,0.00036468]
[1738791864707,0.64194229,97348.0,97347.0,0.00036468]
[1738791864937,0.95804229,97348.0,97347.0,0.00036468]
[1738791866928,0.96850461,97348.0,97347.0,0.00036468]
[1738791869830,1.01620461,97348.0,97347.0,0.00036468]
[1738791870027,1.01620461,97348.0,97332.0,0.00022428]
[1738791870028,0.30411,97333.0,97332.0,0.00022428]
[1738791870233,0.79383525,97333.0,97332.0,0.00033981]
[1738791871327,0.84204424,97333.0,97332.0,0.00033981]
[1738791873322,0.85266416,97333.0,97332.0,0.00033981]
[1738791874052,0.86266416,97333.0,97332.0,0.00033981]
[1738791875223,0.89218808,97333.0,97332.0,0.00033981]
[1738791875520,0.33434656,97333.0,97332.0,0.12193981]
[1738791875910,0.07773291,97333.0,97332.0,0.12193981]
[1738791876281,0.23184291,97333.0,97332.0,0.12193981]
[1738791876707,0.15411,97333.0,97332.0,0.12193981]
[1738791878158,0.01069131,97337.0,97332.0,0.12193981]
[1738791878349,0.154107,97335.0,97332.0,0.12193981]
[1738791878772,0.154108,97334.0,97332.0,0.12193981]
[1738791880030,0.154106,97336.0,97332.0,0.12193981]
[1738791880230,0.154108,97335.0,97332.0,0.12193981]
[1738791880488,0.205472,97337.0,97332.0,0.12193981]
[1738791880698,0.023,97343.0,97332.0,0.12193981]
[1738791880891,0.15411,97333.0,97332.0,0.12193981]
[1738791881525,0.46021,97333.0,97332.0,0.12193981]
[1738791881983,0.3061,97333.0,97332.0,0.12193981]
[1738791882428,0.46021,97333.0,97332.0,0.12193981]
[1738791882652,0.3061,97333.0,97332.0,0.12193981]
[1738791883331,0.46021,97333.0,97332.0,0.12193981]
[1738791883630,0.3061,97333.0,97332.0,0.12193981]
[1738791890295,0.46021,97333.0,97332.0,0.12193981]
[1738791890474,0.3061,97333.0,97332.0,0.12193981]
[1738791890694,0.46021,97333.0,97332.0,0.12193981]
[1738791891571,0.47871601,97333.0,97332.0,0.12193981]
[1738791894492,0.50833727,97333.0,97332.0,0.12193981]
[1738791894666,0.35422727,97333.0,97332.0,0.12193981]
[1738791894864,0.50833727,97333.0,97332.0,0.12193981]
[1738791895347,0.47871601,97333.0,97332.0,0.12193981]
[1738791898557,0.47681601,97333.0,97332.0,0.12193981]
[1738791899199,0.32270601,97333.0,97332.0,0.12193981]
[1738791899618,0.47681601,97333.0,97332.0,0.12193981]
[1738791901652,0.47681601,97333.0,97332.0,0.00033981]
[1738791901857,0.82445799,97333.0,97332.0,0.00033981]
[1738791903257,0.90235799,97333.0,97332.0,0.00033981]
[1738791903656,0.93734211,97333.0,97332.0,0.00033981]
[1738791905318,0.93756661,97333.0,97332.0,0.00033981]
[1738791905525,1.04007026,97333.0,97332.0,0.00033981]
[1738791908440,0.85966661,97333.0,97332.0,0.00033981]
[1738791908643,0.90746661,97333.0,97332.0,0.00033981]
[1738791909618,0.87782661,97333.0,97332.0,0.00033981]
[1738791910809,0.96852661,97333.0,97332.0,8.1e-07]
[1738791911571,0.398751,97332.0,97331.0,9e-08]
[1738791911790,0.6037583,97332.0,97331.0,0.00013963]
[1738791912871,0.6037583,97332.0,97331.0,1e-08]
[1738791913370,0.65185885,97332.0,97331.0,1e-08]
[1738791913572,0.95605885,97332.0,97331.0,1e-08]
[1738791913905,2.45605885,97332.0,97331.0,1e-08]
[1738791914098,2.45605885,97332.0,97315.0,0.00022428]
[1738791914099,0.09464,97316.0,97315.0,4.028e-05]
[1738791914250,0.55766065,97316.0,97315.0,0.00050881]